fUST/lending_fUST_20240927
["ID","MTS","AMOUNT","RATE_DAILY","PERIOD"]
[339247075,1727398241060,-500.0,0.00019178,2]
[339247076,1727398241069,-503.25066039,0.00019178,2]
[339247077,1727398241079,-500.0,0.00019178,2]
[339247078,1727398241088,-500.0,0.00019178,2]
[339247079,1727398241098,-500.0,0.00019178,2]
[339247080,1727398241108,-500.0,0.00019178,2]
[339247081,1727398241120,-500.0,0.00019178,2]
[339247082,1727398241137,-510.16581955,0.00019178,2]
[339247083,1727398241147,-508.47735244,0.00019178,2]
[339247084,1727398241157,-500.0,0.00019178,2]
[339247085,1727398241166,-547.93435947,0.00019178,2]
[339247086,1727398241176,-500.0,0.00019178,2]
[339247087,1727398241185,-505.27084755,0.00019178,2]
[339247088,1727398241195,-587.59939953,0.00019178,2]
[339247089,1727398241204,-500.0,0.00019178,2]
[339247090,1727398241214,-500.0,0.00019178,2]
[339247091,1727398241226,-509.68535942,0.00019178,2]
[339247092,1727398241236,-500.0,0.00019178,2]
[339247093,1727398241246,-528.1217026,0.00019178,2]
[339247094,1727398241258,-517.16527131,0.00019178,2]
[339247095,1727398241267,-609.0682272,0.00019178,2]
[339247096,1727398241277,-500.0,0.00019178,2]
[339247097,1727398241286,-505.17757509,0.00019178,2]
[339247098,1727398241296,-529.06867486,0.00019178,2]
[339247099,1727398241307,-533.02025456,0.00019178,2]
[339247100,1727398241318,-500.0,0.00019178,2]
[339247101,1727398241328,-505.81315304,0.00019178,2]
[339247102,1727398241338,-513.04853029,0.00019178,2]
[339247103,1727398241347,-506.81759227,0.00019178,2]
[339247104,1727398241357,-548.58652436,0.00019178,2]
[339247105,1727398241366,-500.0,0.00019178,2]
[339247106,1727398241375,-500.0,0.00019178,2]
[339247107,1727398241385,-500.0,0.00019178,2]
[339247108,1727398241394,-500.0,0.00019178,2]
[339247109,1727398241404,-308.39339211,0.00019178,2]
[339247110,1727398241414,-500.0,0.00019178,2]
[339247111,1727398241423,-659.45,0.00019178,2]
[339247112,1727398241433,-222.12862893,0.00019178,2]
[339247113,1727398241442,-500.0,0.00019178,2]
[339247114,1727398241451,-500.0,0.00019178,2]
[339247115,1727398241460,-500.0,0.00019178,2]
[339247116,1727398241470,-500.0,0.00019178,2]
[339247117,1727398241479,-500.0,0.00019178,2]
[339247118,1727398241488,-500.0,0.00019178,2]
[339247119,1727398241498,-500.0,0.00019178,2]
[339247120,1727398241507,-500.0,0.00019178,2]
[339247121,1727398241516,-500.0,0.00019178,2]
[339247122,1727398241525,-500.0,0.00019178,2]
[339247123,1727398241535,-541.3,0.00019178,2]
[339247124,1727398241546,-25556.53,0.00019178,2]
[339247125,1727398241556,-472.1055415,0.00019178,2]
[339247126,1727398241566,-986.52,0.00019178,2]
[339247127,1727398241575,-500.0,0.00019178,2]
[339247128,1727398241587,-500.0,0.00019178,2]
[339247129,1727398241597,-500.0,0.00019178,2]
[339247130,1727398241606,-500.0,0.00019178,2]
[339247131,1727398241618,-4476.93,0.00019178,2]
[339247132,1727398241628,-500.0,0.00019178,2]
[339247133,1727398241638,-500.0,0.00019178,2]
[339247134,1727398241648,-528.6371028,0.00019178,2]
[339247135,1727398241658,-518.36715894,0.00019178,2]
[339247136,1727398241668,-500.0,0.00019178,2]
[339247137,1727398241677,-500.0,0.00019178,2]
[339247138,1727398241687,-508.66414654,0.00019178,2]
[339247139,1727398241697,-212.491291,0.00019178,2]
[339247140,1727398241708,-158.485753,0.00019178,2]
[339247141,1727398241718,-150.112233,0.000192,2]
[339247142,1727398241727,-171.003397,0.00019241,2]
[339247143,1727398241737,-265.715778,0.00019309,2]
[339247144,1727398241747,-265.715778,0.00019314,2]
[339247145,1727398241756,-200.44222355,0.00019314,2]
[339247146,1727398241765,-265.715778,0.00019319,2]
[339247147,1727398241774,-265.715778,0.00019324,2]
[339247148,1727398241784,-265.715778,0.00019329,2]
[339247149,1727398241797,-265.715778,0.00019334,2]
[339247150,1727398241807,-265.715778,0.00019339,2]
[339247151,1727398241816,-265.715778,0.00019344,2]
[339247152,1727398241825,-265.715778,0.00019349,2]
[339247153,1727398241834,-265.715778,0.00019354,2]
[339247154,1727398241843,-265.715778,0.00019359,2]
[339247155,1727398241852,-265.715778,0.00019364,2]
[339247156,1727398241861,-265.715778,0.0001937,2]
[339247157,1727398241870,-265.715778,0.00019375,2]
[339247158,1727398241879,-265.715778,0.0001938,2]
[339247159,1727398241889,-265.715778,0.00019385,2]
[339247160,1727398241898,-265.715778,0.0001939,2]
[339247161,1727398241907,-265.715778,0.00019395,2]
[339247162,1727398241917,-265.715778,0.000194,2]
[339247163,1727398241927,-150.112233,0.000194,2]
[339247164,1727398241936,-265.715778,0.00019405,2]
[339247165,1727398241945,-104783.798924,0.00019432,3]
[339247166,1727398241954,-13149.2687305,0.00019432,3]
[339247167,1727398241963,-175.52349,0.00019436,2]
[339247168,1727398241973,-151.0,0.00019442,2]
[339247169,1727398241982,-151.0,0.00019442,2]
[339247170,1727398241992,-151.0,0.00019442,2]
[339247171,1727398242001,-52391.8994618,0.00019442,3]
[339247172,1727398242010,-13149.2687305,0.00019442,3]
[339247173,1727398242019,-500.0,0.00019452,2]
[339247174,1727398242029,-500.0,0.00019452,2]
[339247175,1727398242038,-500.0,0.00019452,2]
[339247176,1727398242050,-500.0,0.00019452,2]
[339247177,1727398242059,-512.82402721,0.00019452,2]
[339247178,1727398242068,-500.0,0.00019452,2]
[339247179,1727398242078,-500.0,0.00019452,2]
[339247180,1727398242087,-500.0,0.00019452,2]
[339247181,1727398242097,-682.4,0.00019452,2]
[339247182,1727398242106,-500.0,0.00019452,2]
[339247183,1727398242115,-511.33747234,0.00019452,2]
[339247184,1727398242126,-382.71284575,0.00019452,2]
[339247185,1727398242135,-1246.67,0.00019452,2]
[339247186,1727398242145,-500.0,0.00019452,2]
[339247187,1727398242154,-1387.08,0.00019452,2]
[339247188,1727398242164,-2195.41,0.00019452,2]
[339247189,1727398242173,-700.56,0.00019452,2]
[339247190,1727398242183,-1326.46,0.00019452,2]
[339247191,1727398242192,-500.0,0.00019452,2]
[339247192,1727398242202,-406.31068931,0.00019452,2]
[339247193,1727398242211,-500.0,0.00019452,2]
[339247194,1727398242221,-500.0,0.00019452,2]
[339247195,1727398242230,-160.5107763,0.00019452,2]
[339247196,1727398242240,-502.90496196,0.00019452,2]
[339247197,1727398242250,-225.79366026,0.00019452,2]
[339247198,1727398242260,-504.58991093,0.00019452,2]
[339247199,1727398242272,-501.27515474,0.00019452,2]
[339247200,1727398242281,-509.504214,0.00019452,2]
[339247201,1727398242292,-503.14116109,0.00019452,2]
[339247202,1727398242304,-500.0,0.00019452,2]
[339247203,1727398242313,-500.0,0.00019452,2]
[339247204,1727398242322,-503.84850844,0.00019452,2]
[339247205,1727398242332,-500.0,0.00019452,2]
[339247206,1727398242341,-500.0,0.00019452,2]
[339247207,1727398242351,-514.1948959,0.00019452,2]
[339247208,1727398242361,-502.63370629,0.00019452,2]
[339247209,1727398242371,-500.0,0.00019452,2]
[339247210,1727398242380,-507.76794046,0.00019452,2]
[339247211,1727398242390,-1000.0,0.00019452,2]
[339247212,1727398242399,-506.31631683,0.00019452,2]
[339247213,1727398242409,-500.0,0.00019452,2]
[339247214,1727398242418,-507.37592985,0.00019452,2]
[339247215,1727398242427,-500.0,0.00019452,2]
[339247216,1727398242437,-500.0,0.00019452,2]
[339247217,1727398242446,-152.81325191,0.00019452,2]
[339247218,1727398242456,-500.0,0.00019452,2]
[339247219,1727398242465,-387.08560347,0.00019452,2]
[339247220,1727398242475,-500.0,0.00019452,2]
[339247221,1727398242484,-500.0,0.00019452,2]
[339247222,1727398242501,-497.87307135,0.00019452,2]
[339247223,1727398242512,-527.34,0.00019452,2]
[339247224,1727398242522,-247.83,0.00019452,2]
[339247225,1727398242531,-500.0,0.00019452,2]
[339247226,1727398242541,-697.71,0.00019452,2]
[339247227,1727398242551,-501.19042984,0.00019452,2]
[339247228,1727398242560,-504.65656163,0.00019452,2]
[339247229,1727398242570,-500.0,0.00019452,2]
[339247230,1727398242579,-505.71186918,0.00019452,2]
[339247231,1727398242588,-2723.78,0.00019452,2]
[339247232,1727398242597,-500.0,0.00019452,2]
[339247233,1727398242607,-166.34343565,0.00019452,2]
[339247234,1727398242620,-501.97075498,0.00019452,2]
[339247235,1727398242629,-500.0,0.00019452,2]
[339247236,1727398242638,-501.96895015,0.00019452,2]
[339247237,1727398242647,-500.0,0.00019452,2]
[339247239,1727398242657,-338.20132912,0.00019452,2]
[339247241,1727398242667,-547.23880319,0.00019452,2]
[339247242,1727398242677,-500.0,0.00019452,2]
[339247243,1727398242686,-500.0,0.00019452,2]
[339247244,1727398242696,-514.32724034,0.00019452,2]
[339247245,1727398242706,-501.67775252,0.00019452,2]
[339247246,1727398242715,-500.0,0.00019452,2]
[339247247,1727398242724,-515.17891446,0.00019452,2]
[339247248,1727398242734,-500.0,0.00019452,2]
[339247249,1727398242743,-500.0,0.00019452,2]
[339247250,1727398242753,-500.0,0.00019452,2]
[339247251,1727398242763,-500.0,0.00019452,2]
[339247253,1727398242772,-500.0,0.00019452,2]
[339247254,1727398242781,-502.36019001,0.00019452,2]
[339247255,1727398242791,-500.0,0.00019452,2]
[339247256,1727398242800,-604.00328427,0.00019452,2]
[339247257,1727398242811,-311.80473511,0.00019452,2]
[339247258,1727398242821,-500.0,0.00019452,2]
[339247259,1727398242830,-255.39,0.00019452,2]
[339247260,1727398242839,-256.48874465,0.00019452,2]
[339247261,1727398242848,-500.0,0.00019452,2]
[339247262,1727398242858,-163.87137728,0.00019452,2]
[339247263,1727398242867,-500.0,0.00019452,2]
[339247264,1727398242877,-500.0,0.00019452,2]
[339247266,1727398242886,-606.58122147,0.00019452,2]
[339247268,1727398242895,-514.98980411,0.00019452,2]
[339247270,1727398242905,-500.0,0.00019452,2]
[339247272,1727398242914,-659.45,0.00019452,2]
[339247273,1727398242923,-509.35448854,0.00019452,2]
[339247275,1727398242933,-25556.53,0.00019452,2]
[339247277,1727398242942,-986.52,0.00019452,2]
[339247292,1727398242951,-541.66430848,0.00019452,2]
[339247294,1727398243104,-500.0,0.00019452,2]
[339247296,1727398243114,-500.0,0.00019452,2]
[339247298,1727398243123,-500.0,0.00019452,2]
[339247300,1727398243133,-4476.93,0.00019452,2]
[339247301,1727398243142,-393.22196267,0.00019452,2]
[339247303,1727398243152,-500.0,0.00019452,2]
[339247305,1727398243161,-500.0,0.00019452,2]
[339247307,1727398243170,-500.0,0.00019452,2]
[339247308,1727398243179,-802.16377865,0.00019497,2]
[339247310,1727398243189,-150.112233,0.000195,2]
[339247312,1727398243199,-150.112233,0.000196,2]
[339247314,1727398243208,-151.0,0.00019716,2]
[339247316,1727398243217,-151.0,0.00019716,2]
[339247318,1727398243226,-194.92418,0.00019716,2]
[339247319,1727398243235,-194.92418,0.00019716,2]
[339247321,1727398243245,-151.0,0.00019716,2]
[339247323,1727398243254,-151.0,0.00019716,2]
[339247325,1727398243263,-13149.2687305,0.00019716,3]
[339247326,1727398243272,-500.0,0.00019726,2]
[339247327,1727398243281,-500.0,0.00019726,2]
[339247328,1727398243291,-500.0,0.00019726,2]
[339247329,1727398243300,-682.4,0.00019726,2]
[339247330,1727398243310,-500.0,0.00019726,2]
[339247331,1727398243319,-1246.67,0.00019726,2]
[339247332,1727398243328,-500.0,0.00019726,2]
[339247333,1727398243338,-1387.08,0.00019726,2]
[339247334,1727398243350,-2195.41,0.00019726,2]
[339247335,1727398243360,-700.56,0.00019726,2]
[339247336,1727398243370,-1326.46,0.00019726,2]
[339247337,1727398243379,-504.15598698,0.00019726,2]
[339247338,1727398243389,-428.16614108,0.00019726,2]
[339247339,1727398243398,-500.0,0.00019726,2]
[339247340,1727398243408,-151.0,0.00019726,2]
[339247341,1727398243417,-151.0,0.00019726,2]
[339247342,1727398243427,-151.0,0.00019726,2]
[339247343,1727398243436,-500.0,0.00019726,2]
[339247344,1727398243446,-500.0,0.00019726,2]
[339247345,1727398243456,-500.0,0.00019726,2]
[339247346,1727398243465,-500.0,0.00019726,2]
[339247347,1727398243475,-312.82046089,0.00019726,2]
[339247348,1727398243484,-1000.0,0.00019726,2]
[339247349,1727398243494,-260.8141802,0.00019726,2]
[339247350,1727398243503,-500.0,0.00019726,2]
[339247351,1727398243513,-510.835039,0.00019726,2]
[339247352,1727398243522,-339.8628852,0.00019726,2]
[339247353,1727398243531,-500.0,0.00019726,2]
[339247354,1727398243544,-500.0,0.00019726,2]
[339247355,1727398243555,-527.34,0.00019726,2]
[339247356,1727398243565,-247.83,0.00019726,2]
[339247357,1727398243574,-500.0,0.00019726,2]
[339247358,1727398243584,-151.0,0.00019726,2]
[339247359,1727398243593,-697.71,0.00019726,2]
[339247360,1727398243603,-153.197665,0.00019726,2]
[339247361,1727398243613,-223.568564,0.00019726,2]
[339247362,1727398243626,-153.197665,0.00019726,2]
[339247363,1727398243635,-161.83390764,0.00019726,2]
[339247364,1727398243644,-151.0,0.00019726,2]
[339247365,1727398243654,-223.568564,0.00019726,2]
[339247366,1727398243663,-2723.78,0.00019726,2]
[339247367,1727398243672,-500.0,0.00019726,2]
[339247368,1727398243681,-500.0,0.00019726,2]
[339247369,1727398243690,-572.31,0.00019726,2]
[339247370,1727398243701,-597.74310965,0.00019726,2]
[339247371,1727398243710,-500.0,0.00019726,2]
[339247372,1727398243719,-500.0,0.00019726,2]
[339247373,1727398243729,-151.0,0.00019726,2]
[339247374,1727398243738,-503.39798103,0.00019726,2]
[339247375,1727398243749,-500.0,0.00019726,2]
[339247376,1727398243758,-500.0,0.00019726,2]
[339247377,1727398243767,-502.09868353,0.00019726,2]
[339247378,1727398243776,-230.08,0.00019726,2]
[339247379,1727398243787,-500.0,0.00019726,2]
[339247380,1727398243802,-500.0,0.00019726,2]
[339247381,1727398243811,-649.211943,0.00019726,2]
[339247382,1727398243821,-500.0,0.00019726,2]
[339247383,1727398243830,-500.0,0.00019726,2]
[339247384,1727398243839,-659.45,0.00019726,2]
[339247385,1727398243849,-25556.53,0.00019726,2]
[339247386,1727398243858,-986.52,0.00019726,2]
[339247387,1727398243867,-500.0,0.00019726,2]
[339247388,1727398243877,-500.0,0.00019726,2]
[339247389,1727398243887,-4476.93,0.00019726,2]
[339247390,1727398243896,-500.0,0.00019726,2]
[339247391,1727398243905,-500.0,0.00019726,2]
[339247392,1727398243915,-360.0,0.0001977,2]
[339247393,1727398243925,-500.46350857,0.00019773,2]
[339247394,1727398243934,-500.0,0.00019773,2]
[339247395,1727398243944,-500.0,0.00019773,2]
[339247396,1727398243953,-500.0,0.00019773,2]
[339247397,1727398243962,-150.112233,0.000198,2]
[339247398,1727398243972,-420.0,0.00019823,2]
[339247399,1727398243981,-150.112233,0.000199,2]
[339247400,1727398243991,-166.666666,0.00019953,2]
[339247401,1727398244000,-420.0,0.00019987,2]
[339247402,1727398244009,-6574.63436527,0.0001999,3]
[339247403,1727398244018,-176.24971131,0.0002,2]
[339247404,1727398244028,-500.0,0.0002,2]
[339247405,1727398244038,-500.0,0.0002,2]
[339247406,1727398244050,-682.4,0.0002,2]
[339247407,1727398244059,-500.0,0.0002,2]
[339247408,1727398244068,-1246.67,0.0002,2]
[339247409,1727398244078,-500.0,0.0002,2]
[339247410,1727398244088,-1387.08,0.0002,2]
[339247411,1727398244097,-2195.41,0.0002,2]
[339247412,1727398244106,-700.56,0.0002,2]
[339247413,1727398244115,-1326.46,0.0002,2]
[339247414,1727398244125,-500.0,0.0002,2]
[339247415,1727398244134,-4482.9895051,0.0002,2]
[339247416,1727398244143,-500.0,0.0002,2]
[339247417,1727398244153,-500.0,0.0002,2]
[339247418,1727398244162,-434.48154708,0.0002,2]
[339247419,1727398244172,-500.0,0.0002,2]
[339247420,1727398244181,-1000.0,0.0002,2]
[339247421,1727398244191,-500.0,0.0002,2]
[339247422,1727398244201,-500.0,0.0002,2]
[339247423,1727398244210,-491.5034541,0.0002,2]
[339247424,1727398244220,-527.34,0.0002,2]
[339247425,1727398244229,-247.83,0.0002,2]
[339247426,1727398244239,-500.0,0.0002,2]
[339247427,1727398244248,-697.71,0.0002,2]
[339247428,1727398244258,-2723.78,0.0002,2]
[339247429,1727398244267,-500.0,0.0002,2]
[339247430,1727398244276,-500.0,0.0002,2]
[339247431,1727398244286,-500.0,0.0002,2]
[339247432,1727398244296,-553.69461585,0.0002,2]
[339247433,1727398244308,-256.87436152,0.0002,2]
[339247434,1727398244317,-500.0,0.0002,2]
[339247435,1727398244327,-500.0,0.0002,2]
[339247436,1727398244336,-500.0,0.0002,2]
[339247437,1727398244346,-522.4921492,0.0002,2]
[339247438,1727398244355,-659.45,0.0002,2]
[339247439,1727398244364,-25556.53,0.0002,2]
[339247440,1727398244374,-151.0,0.0002,2]
[339247441,1727398244384,-986.52,0.0002,2]
[339247442,1727398244394,-500.0,0.0002,2]
[339247443,1727398244404,-500.0,0.0002,2]
[339247444,1727398244413,-4476.93,0.0002,2]
[339247445,1727398244423,-151.0,0.0002,2]
[339247446,1727398244432,-249.9566691,0.0002,2]
[339247447,1727398244442,-500.0,0.0002,2]
[339247448,1727398244452,-500.0,0.00020015,2]
[339247449,1727398244461,-150.112233,0.000201,3]
[339247450,1727398244471,-150.112233,0.000202,5]
[339247451,1727398244480,-151.0,0.00020224,2]
[339247452,1727398244490,-6574.63436527,0.00020253,3]
[339247453,1727398244500,-6574.63436527,0.00020263,3]
[339247454,1727398244509,-151.0,0.00020263,2]
[339247455,1727398244518,-194.92418,0.00020263,2]
[339247456,1727398244527,-194.92418,0.00020263,2]
[339247457,1727398244537,-151.0,0.00020263,2]
[339247458,1727398244547,-151.0,0.00020263,2]
[339247459,1727398244557,-211.274657,0.00020263,2]
[339247460,1727398244566,-151.0,0.00020263,2]
[339247461,1727398244575,-151.0,0.00020263,2]
[339247462,1727398244585,-151.0,0.00020263,2]
[339247463,1727398244594,-151.0,0.00020263,2]
[339247464,1727398244605,-151.0,0.00020263,2]
[339247465,1727398244617,-151.0,0.00020263,2]
[339247466,1727398244627,-500.0,0.00020273,2]
[339247467,1727398244637,-500.0,0.00020273,2]
[339247468,1727398244646,-682.4,0.00020273,2]
[339247469,1727398244656,-308.96,0.00020273,2]
[339247470,1727398244666,-1246.67,0.00020273,2]
[339247471,1727398244675,-500.0,0.00020273,2]
[339247472,1727398244684,-1387.08,0.00020273,2]
[339247473,1727398244695,-2195.41,0.00020273,2]
[339247474,1727398244704,-700.56,0.00020273,2]
[339247475,1727398244714,-1326.46,0.00020273,2]
[339247476,1727398244723,-517.01180581,0.00020273,2]
[339247477,1727398244733,-577.3447711,0.00020273,2]
[339247478,1727398244742,-500.0,0.00020273,2]
[339247479,1727398244752,-500.0,0.00020273,2]
[339247480,1727398244761,-1000.0,0.00020273,2]
[339247481,1727398244771,-389.08448722,0.00020273,2]
[339247482,1727398244780,-500.0,0.00020273,2]
[339247483,1727398244789,-527.34,0.00020273,2]
[339247484,1727398244800,-247.83,0.00020273,2]
[339247485,1727398244809,-253.08970251,0.00020273,2]
[339247486,1727398244818,-697.71,0.00020273,2]
[339247487,1727398244827,-153.197665,0.00020273,2]
[339247488,1727398244836,-223.568564,0.00020273,2]
[339247489,1727398244846,-153.197665,0.00020273,2]
[339247490,1727398244855,-151.0,0.00020273,2]
[339247491,1727398244864,-223.568564,0.00020273,2]
[339247492,1727398244873,-2723.78,0.00020273,2]
[339247493,1727398244882,-500.0,0.00020273,2]
[339247494,1727398244892,-500.0,0.00020273,2]
[339247495,1727398244901,-164.08,0.00020273,2]
[339247496,1727398244911,-151.0,0.00020273,2]
[339247497,1727398244920,-500.0,0.00020273,2]
[339247498,1727398244929,-500.0,0.00020273,2]
[339247499,1727398244938,-500.0,0.00020273,2]
[339247500,1727398244947,-659.45,0.00020273,2]
[339247501,1727398244956,-25556.53,0.00020273,2]
[339247502,1727398244966,-986.52,0.00020273,2]
[339247503,1727398244975,-500.0,0.00020273,2]
[339247504,1727398244984,-500.27187412,0.00020273,2]
[339247505,1727398244994,-4476.93,0.00020273,2]
[339247506,1727398245003,-597.79,0.00020273,2]
[339247507,1727398245013,-1000.0,0.00020321,2]
[339247508,1727398245022,-1000.0,0.00020321,2]
[339247509,1727398245032,-162.231596,0.00020368,2]
[339247510,1727398245043,-150.927915,0.00020368,2]
[339247511,1727398245053,-180.887805,0.00020368,2]
[339247512,1727398245062,-150.112233,0.000204,4]
[339247513,1727398245072,-477.36861858,0.0002047,2]
[339247514,1727398245081,-481.85818893,0.00020472,2]
[339247515,1727398245091,-150.112233,0.000205,2]
[339247516,1727398245100,-151.0,0.00020505,2]
[339247517,1727398245109,-151.0,0.00020527,2]
[339247518,1727398245119,-151.0,0.00020527,2]
[339247519,1727398245129,-151.0,0.00020527,2]
[339247520,1727398245138,-151.0,0.00020527,2]
[339247521,1727398245147,-151.0,0.00020527,2]
[339247522,1727398245156,-268.64208,0.00020527,2]
[339247523,1727398245166,-151.0,0.00020527,2]
[339247524,1727398245175,-2822.40355142,0.00020527,3]
[339247525,1727398245246,-500.0,0.00019173,2]
[339247526,1727398245255,-501.87737867,0.00019721,2]
[339247527,1727398245265,-3752.23081385,0.00020527,3]
[339247528,1727398245275,-151.0,0.00020537,2]
[339247529,1727398245285,-151.0,0.00020537,2]
[339247530,1727398245295,-151.0,0.00020537,2]
[339247531,1727398245305,-6574.63436527,0.00020537,3]
[339247532,1727398245315,-500.0,0.00020547,2]
[339247533,1727398245323,-500.0,0.00020547,2]
[339247534,1727398245333,-682.4,0.00020547,2]
[339247535,1727398245343,-1246.67,0.00020547,2]
[339247536,1727398245352,-208.28756696,0.00020547,2]
[339247537,1727398245361,-1387.08,0.00020547,2]
[339247538,1727398245370,-2195.41,0.00020547,2]
[339247539,1727398245379,-700.56,0.00020547,2]
[339247540,1727398245388,-1326.46,0.00020547,2]
[339247541,1727398245397,-476.89472575,0.00020547,2]
[339247542,1727398245406,-373.05604989,0.00020547,2]
[339247543,1727398245415,-1000.0,0.00020547,2]
[339247544,1727398245425,-224.43052595,0.00020547,2]
[339247545,1727398245434,-527.34,0.00020547,2]
[339247546,1727398245443,-247.83,0.00020547,2]
[339247547,1727398245452,-697.71,0.00020547,2]
[339247548,1727398245461,-2723.78,0.00020547,2]
[339247549,1727398245471,-500.0,0.00020547,2]
[339247550,1727398245480,-500.0,0.00020547,2]
[339247551,1727398245490,-500.0,0.00020547,2]
[339247552,1727398245501,-500.0,0.00020547,2]
[339247553,1727398245511,-500.0,0.00020547,2]
[339247554,1727398245521,-659.45,0.00020547,2]
[339247555,1727398245530,-25556.53,0.00020547,2]
[339247556,1727398245540,-986.52,0.00020547,2]
[339247557,1727398245551,-609.02583736,0.00020547,2]
[339247558,1727398245560,-4476.93,0.00020547,2]
[339247559,1727398245569,-500.0,0.00020573,2]
[339247560,1727398245579,-155.171708,0.000206,4]
[339247561,1727398245588,-150.112233,0.000207,4]
[339247562,1727398245598,-150.927915,0.00020708,2]
[339247563,1727398245607,-151.0,0.00020786,2]
[339247564,1727398245618,-311.15,0.000208,2]
[339247565,1727398245628,-6574.63436527,0.00020811,3]
[339247566,1727398245637,-500.0,0.00020821,2]
[339247567,1727398245648,-500.0,0.00020821,2]
[339247568,1727398245657,-682.4,0.00020821,2]
[339247569,1727398245666,-1246.67,0.00020821,2]
[339247570,1727398245676,-1387.08,0.00020821,2]
[339247571,1727398245685,-2195.41,0.00020821,2]
[339247572,1727398245694,-700.56,0.00020821,2]
[339247573,1727398245704,-1326.46,0.00020821,2]
[339247575,1727398245714,-1000.0,0.00020821,2]
[339247582,1727398245824,-527.34,0.00020821,2]
[339247583,1727398245833,-247.83,0.00020821,2]
[339247584,1727398245842,-697.71,0.00020821,2]
[339247585,1727398245851,-2723.78,0.00020821,2]
[339247586,1727398245860,-500.0,0.00020821,2]
[339247587,1727398245869,-615.05320917,0.00020821,2]
[339247589,1727398245879,-151.0,0.00020821,2]
[339247591,1727398245888,-151.0,0.00020821,2]
[339247593,1727398245897,-151.0,0.00020821,2]
[339247595,1727398245907,-500.0,0.00020821,2]
[339247597,1727398245917,-151.0,0.00020821,2]
[339247599,1727398245926,-500.0,0.00020821,2]
[339247601,1727398245935,-151.0,0.00020821,2]
[339247603,1727398245944,-215.583508,0.00020821,2]
[339247605,1727398245954,-318.78,0.00020821,2]
[339247607,1727398245963,-659.45,0.00020821,2]
[339247609,1727398245973,-25556.53,0.00020821,2]
[339247611,1727398245984,-151.0,0.00020821,2]
[339247613,1727398245993,-986.52,0.00020821,2]
[339247615,1727398246002,-4476.93,0.00020821,2]
[339247617,1727398246011,-151.0,0.00020821,2]
[339247618,1727398246020,-180.887805,0.00020878,2]
[339247620,1727398246030,-152.68017911,0.00020899,2]
[339247622,1727398246039,-150.112233,0.000209,3]
[339247624,1727398246050,-6260.5328975,0.00020976,2]
[339247626,1727398246060,-13149.2687305,0.0002099,3]
[339247627,1727398246069,-711.85023632,0.00021,30]
[339247629,1727398246078,-607.21200268,0.00021,30]
[339247631,1727398246087,-800.0,0.00021,30]
[339247633,1727398246097,-500.0,0.00021,30]
[339247635,1727398246106,-500.0,0.00021,30]
[339247637,1727398246115,-500.0,0.00021,30]
[339247638,1727398246124,-500.0,0.00021,30]
[339247640,1727398246133,-500.0,0.00021,30]
[339247642,1727398246143,-500.0,0.00021,30]
[339247644,1727398246152,-500.0,0.00021,30]
[339247646,1727398246161,-500.0,0.00021,30]
[339247648,1727398246171,-500.0,0.00021,30]